[Event "*** SCC Grand Prix: Titled Tuesday Blitz"]
[Site "Chess.com"]
[Date "2020.10.06"]
[Round "8"]
[White "googlegoom"]
[Black "AndreyNeves"]
[Result "1-0"]
[WhiteElo "2419"]
[BlackElo "2233"]
[TimeControl "180+1"]
[EndTime "11:34:49 PDT"]
[Termination "googlegoom won by checkmate"]

1. Nf3 {[%clk 0:03:00.9]} 1... d5 {[%clk 0:02:59.2]} 2. b3 {[%clk 0:02:58.6]}
2... Nc6 {[%clk 0:02:55.8]} 3. Bb2 {[%clk 0:02:58.7]} 3... Bg4 {[%clk
0:02:53.9]} 4. d4 {[%clk 0:02:58.7]} 4... Bxf3 {[%clk 0:02:47.8]} 5. gxf3 {[%clk
0:02:56]} 5... e6 {[%clk 0:02:47.4]} 6. f4 {[%clk 0:02:51.3]} 6... Nf6 {[%clk
0:02:46.4]} 7. e3 {[%clk 0:02:51.7]} 7... Be7 {[%clk 0:02:42.6]} 8. Nd2 {[%clk
0:02:51.6]} 8... a6 {[%clk 0:02:38.8]} 9. a3 {[%clk 0:02:50.3]} 9... g6 {[%clk
0:02:32.1]} 10. c4 {[%clk 0:02:48]} 10... O-O {[%clk 0:02:23.5]} 11. h4 {[%clk
0:02:40.3]} 11... h5 {[%clk 0:02:22.5]} 12. Bd3 {[%clk 0:02:38]} 12... Nh7
{[%clk 0:02:08.2]} 13. Qc2 {[%clk 0:02:32.3]} 13... f5 {[%clk 0:02:06.1]} 14.
Nf3 {[%clk 0:02:27]} 14... Bf6 {[%clk 0:02:00.9]} 15. O-O-O {[%clk 0:02:25.3]}
15... a5 {[%clk 0:01:58.4]} 16. Rdg1 {[%clk 0:02:19.8]} 16... Ne7 {[%clk
0:01:49.3]} 17. Ne5 {[%clk 0:01:59.9]} 17... Bxe5 {[%clk 0:01:48.1]} 18. fxe5
{[%clk 0:01:59.6]} 18... c6 {[%clk 0:01:45.8]} 19. Kb1 {[%clk 0:01:55.4]} 19...
Kf7 {[%clk 0:01:45.1]} 20. f3 {[%clk 0:01:53.4]} 20... a4 {[%clk 0:01:40]} 21.
b4 {[%clk 0:01:53]} 21... dxc4 {[%clk 0:01:39]} 22. Bxc4 {[%clk 0:01:51.4]}
22... Nd5 {[%clk 0:01:38.8]} 23. e4 {[%clk 0:01:42.2]} 23... Ne3 {[%clk
0:01:31.7]} 24. Qd3 {[%clk 0:01:40.9]} 24... Nxc4 {[%clk 0:01:31.3]} 25. Qxc4
{[%clk 0:01:41.8]} 25... b5 {[%clk 0:01:21.8]} 26. Qxc6 {[%clk 0:01:23]} 26...
Qe8 {[%clk 0:01:20.7]} 27. Qc1 {[%clk 0:01:07.9]} 27... Rc8 {[%clk 0:01:20]} 28.
Qh6 {[%clk 0:01:06.6]} 28... Rg8 {[%clk 0:01:12.5]} 29. Qxh7+ {[%clk 0:01:03.5]}
29... Rg7 {[%clk 0:01:13.2]} 30. Qh6 {[%clk 0:01:03.9]} 30... Rc4 {[%clk
0:01:07.8]} 31. d5 {[%clk 0:01:00.7]} 31... Qc8 {[%clk 0:01:04.4]} 32. exf5
{[%clk 0:00:49.2]} 32... Rc2 {[%clk 0:00:47.7]} 33. Rxg6 {[%clk 0:00:39.1]}
33... Rxb2+ {[%clk 0:00:46.2]} 34. Kxb2 {[%clk 0:00:38.9]} 34... Rxg6 {[%clk
0:00:42.5]} 35. Qxg6+ {[%clk 0:00:37.7]} 35... Kf8 {[%clk 0:00:42.4]} 36. Qf6+
{[%clk 0:00:37.3]} 36... Kg8 {[%clk 0:00:41.7]} 37. Qxe6+ {[%clk 0:00:37.7]}
37... Qxe6 {[%clk 0:00:41.9]} 38. fxe6 {[%clk 0:00:37.8]} 38... Kf8 {[%clk
0:00:41.4]} 39. d6 {[%clk 0:00:38.1]} 39... Ke8 {[%clk 0:00:41.3]} 40. Rg1
{[%clk 0:00:37.2]} 40... Kf8 {[%clk 0:00:40.7]} 41. f4 {[%clk 0:00:35.7]} 41...
Ke8 {[%clk 0:00:39.6]} 42. Rg8# {[%clk 0:00:36.4]} 1-0

[Event "*** SCC Grand Prix: Titled Tuesday Blitz"]
[Site "Chess.com"]
[Date "2020.10.06"]
[Round "8"]
[White "tk22h"]
[Black "CzechmVIII"]
[Result "1-0"]
[WhiteElo "2339"]
[BlackElo "2150"]
[TimeControl "180+1"]
[EndTime "11:34:49 PDT"]
[Termination "tk22h won on time"]

1. c4 {[%clk 0:02:58.4]} 1... Nf6 {[%clk 0:02:59.3]} 2. Nc3 {[%clk 0:02:57.3]}
2... c5 {[%clk 0:02:59.2]} 3. Nf3 {[%clk 0:02:56.7]} 3... b6 {[%clk 0:02:59.2]}
4. e3 {[%clk 0:02:55.8]} 4... g6 {[%clk 0:02:58.6]} 5. d4 {[%clk 0:02:56]} 5...
Bg7 {[%clk 0:02:56.6]} 6. d5 {[%clk 0:02:55.5]} 6... d6 {[%clk 0:02:54.8]} 7. e4
{[%clk 0:02:55.6]} 7... O-O {[%clk 0:02:53.5]} 8. h3 {[%clk 0:02:55.2]} 8... e6
{[%clk 0:02:53.6]} 9. Be2 {[%clk 0:02:54.5]} 9... exd5 {[%clk 0:02:53.7]} 10.
exd5 {[%clk 0:02:54.7]} 10... Bf5 {[%clk 0:02:47.4]} 11. O-O {[%clk 0:02:53.6]}
11... Ne4 {[%clk 0:02:47.3]} 12. Nxe4 {[%clk 0:02:52.7]} 12... Bxe4 {[%clk
0:02:47.6]} 13. Bd3 {[%clk 0:02:53.2]} 13... Bxd3 {[%clk 0:02:44.2]} 14. Qxd3
{[%clk 0:02:53.2]} 14... Re8 {[%clk 0:02:28.7]} 15. Bg5 {[%clk 0:02:51.6]} 15...
Qc7 {[%clk 0:02:20.7]} 16. Rae1 {[%clk 0:02:45]} 16... Nd7 {[%clk 0:02:20.6]}
17. b3 {[%clk 0:02:44.6]} 17... Ne5 {[%clk 0:02:14.3]} 18. Nxe5 {[%clk
0:02:44.5]} 18... Bxe5 {[%clk 0:02:14.4]} 19. Bd2 {[%clk 0:02:44.3]} 19... Re7
{[%clk 0:02:02.7]} 20. Bc3 {[%clk 0:02:43.8]} 20... Rae8 {[%clk 0:02:01]} 21.
Bxe5 {[%clk 0:02:43.2]} 21... Rxe5 {[%clk 0:02:01.1]} 22. Rxe5 {[%clk 0:02:43]}
22... Rxe5 {[%clk 0:02:01.3]} 23. f4 {[%clk 0:02:41.5]} 23... Re8 {[%clk
0:01:48.6]} 24. f5 {[%clk 0:02:41.1]} 24... Qe7 {[%clk 0:01:44.7]} 25. Qf3
{[%clk 0:02:39.3]} 25... Qe3+ {[%clk 0:01:30.6]} 26. Qxe3 {[%clk 0:02:39.3]}
26... Rxe3 {[%clk 0:01:30.9]} 27. fxg6 {[%clk 0:02:31.3]} 27... hxg6 {[%clk
0:01:23.1]} 28. Rf6 {[%clk 0:02:29.6]} 28... Re2 {[%clk 0:01:11.9]} 29. Rxd6
{[%clk 0:02:28.5]} 29... Rxa2 {[%clk 0:01:11.9]} 30. Rd8+ {[%clk 0:02:26.8]}
30... Kg7 {[%clk 0:01:09.3]} 31. Ra8 {[%clk 0:02:26.4]} 31... Kf6 {[%clk
0:01:05.6]} 32. Kh2 {[%clk 0:02:22]} 32... Ke5 {[%clk 0:00:59.4]} 33. Re8+
{[%clk 0:02:20.4]} 33... Kd6 {[%clk 0:00:59.3]} 34. Rd8+ {[%clk 0:02:20.5]}
34... Ke7 {[%clk 0:00:43.6]} 35. Rb8 {[%clk 0:02:20.1]} 35... Ra3 {[%clk
0:00:35.4]} 36. Rb7+ {[%clk 0:02:19]} 36... Ke8 {[%clk 0:00:29.4]} 37. d6 {[%clk
0:02:17.2]} 37... Rxb3 {[%clk 0:00:26.8]} 38. Re7+ {[%clk 0:02:13.1]} 38... Kd8
{[%clk 0:00:26]} 39. Rxa7 {[%clk 0:02:13]} 39... Rd3 {[%clk 0:00:25]} 40. Rxf7
{[%clk 0:02:10.4]} 40... Rxd6 {[%clk 0:00:24.5]} 41. Kg3 {[%clk 0:02:00.4]}
41... Rd3+ {[%clk 0:00:21.6]} 42. Kf2 {[%clk 0:01:58.4]} 42... Rd6 {[%clk
0:00:19.7]} 43. Kf3 {[%clk 0:01:56.3]} 43... Ke8 {[%clk 0:00:20.1]} 44. Rb7
{[%clk 0:01:55.6]} 44... Rf6+ {[%clk 0:00:13.1]} 45. Kg4 {[%clk 0:01:53]} 45...
Rd6 {[%clk 0:00:11.6]} 46. Kg5 {[%clk 0:01:51.5]} 46... Rd4 {[%clk 0:00:08.2]}
47. Rxb6 {[%clk 0:01:49.9]} 47... Rxc4 {[%clk 0:00:08.5]} 48. Kxg6 {[%clk
0:01:46.6]} 48... Rc2 {[%clk 0:00:08.1]} 49. g4 {[%clk 0:01:46]} 49... c4 {[%clk
0:00:08.5]} 50. h4 {[%clk 0:01:44.6]} 50... c3 {[%clk 0:00:08.8]} 51. Rc6 {[%clk
0:01:44.3]} 51... Kd7 {[%clk 0:00:08.4]} 52. Rc4 {[%clk 0:01:44.4]} 52... Rc1
{[%clk 0:00:05.2]} 53. h5 {[%clk 0:01:43.7]} 53... Ke6 {[%clk 0:00:05.6]} 54. g5
{[%clk 0:01:43.9]} 54... c2 {[%clk 0:00:05.1]} 55. h6 {[%clk 0:01:44.3]} 55...
Ke7 {[%clk 0:00:03.3]} 56. h7 {[%clk 0:01:41.5]} 56... Rh1 {[%clk 0:00:01.1]}
57. Rxc2 {[%clk 0:01:40.2]} 1-0

[Event "*** SCC Grand Prix: Titled Tuesday Blitz"]
[Site "Chess.com"]
[Date "2020.10.06"]
[Round "8"]
[White "Bigfish1995"]
[Black "PSvidler"]
[Result "1-0"]
[WhiteElo "3112"]
[BlackElo "2909"]
[TimeControl "180+1"]
[EndTime "11:34:53 PDT"]
[Termination "Bigfish1995 won by resignation"]

1. e4 {[%clk 0:02:50.4]} 1... c5 {[%clk 0:02:58.9]} 2. Nf3 {[%clk 0:02:49.8]}
2... d6 {[%clk 0:02:58.4]} 3. d4 {[%clk 0:02:49.7]} 3... cxd4 {[%clk 0:02:58.5]}
4. Nxd4 {[%clk 0:02:50.4]} 4... Nf6 {[%clk 0:02:59.1]} 5. Nc3 {[%clk 0:02:50.7]}
5... a6 {[%clk 0:02:59.4]} 6. Rg1 {[%clk 0:02:50.9]} 6... g6 {[%clk 0:02:58.5]}
7. g4 {[%clk 0:02:49.2]} 7... Bg7 {[%clk 0:02:59.2]} 8. g5 {[%clk 0:02:48.9]}
8... Nfd7 {[%clk 0:02:59]} 9. h4 {[%clk 0:02:48.7]} 9... b5 {[%clk 0:02:14.4]}
10. h5 {[%clk 0:02:44.6]} 10... O-O {[%clk 0:02:04.1]} 11. Be3 {[%clk
0:02:38.1]} 11... Bb7 {[%clk 0:02:03.6]} 12. hxg6 {[%clk 0:02:08]} 12... hxg6
{[%clk 0:02:03.5]} 13. Qg4 {[%clk 0:02:07.8]} 13... b4 {[%clk 0:01:43.9]} 14.
Nd5 {[%clk 0:02:05]} 14... Bxd5 {[%clk 0:01:41.3]} 15. exd5 {[%clk 0:02:02.8]}
15... Qa5 {[%clk 0:01:42]} 16. Nb3 {[%clk 0:01:48.4]} 16... Qc7 {[%clk 0:01:37]}
17. Bd3 {[%clk 0:01:11.1]} 17... Ne5 {[%clk 0:01:35.1]} 18. Qxb4 {[%clk
0:00:55.7]} 18... Nbd7 {[%clk 0:01:19]} 19. Ke2 {[%clk 0:00:51.6]} 19... Nxd3
{[%clk 0:01:17.1]} 20. cxd3 {[%clk 0:00:48.8]} 20... Rab8 {[%clk 0:01:04.6]} 21.
Qc4 {[%clk 0:00:44.7]} 21... Qxc4 {[%clk 0:01:03.1]} 22. dxc4 {[%clk 0:00:44.9]}
22... Rfc8 {[%clk 0:01:03.8]} 23. Rac1 {[%clk 0:00:34.4]} 23... Bxb2 {[%clk
0:01:03.4]} 24. Rc2 {[%clk 0:00:34.2]} 24... Ba3 {[%clk 0:01:03.2]} 25. Na5
{[%clk 0:00:20.1]} 25... Ne5 {[%clk 0:01:01]} 26. f4 {[%clk 0:00:20]} 26... Bb4
{[%clk 0:01:01]} 27. fxe5 {[%clk 0:00:20]} 27... Bxa5 {[%clk 0:01:01.2]} 28.
exd6 {[%clk 0:00:20.1]} 28... exd6 {[%clk 0:01:01.4]} 29. Kd3 {[%clk 0:00:20.7]}
29... Bb6 {[%clk 0:01:00.6]} 30. Bxb6 {[%clk 0:00:16.3]} 30... Rxb6 {[%clk
0:01:00.5]} 31. Rh1 {[%clk 0:00:17.2]} 31... Rb4 {[%clk 0:00:48.3]} 32. Rch2
{[%clk 0:00:16]} 1-0

[Event "*** SCC Grand Prix: Titled Tuesday Blitz"]
[Site "Chess.com"]
[Date "2020.10.06"]
[Round "8"]
[White "yourstrulyme"]
[Black "FloMasterAAK"]
[Result "1-0"]
[WhiteElo "2452"]
[BlackElo "2546"]
[TimeControl "180+1"]
[EndTime "11:34:54 PDT"]
[Termination "yourstrulyme won by resignation"]

1. d4 {[%clk 0:03:00.9]} 1... d5 {[%clk 0:02:58.9]} 2. Nf3 {[%clk 0:03:01.2]}
2... Nf6 {[%clk 0:02:58.8]} 3. Bf4 {[%clk 0:03:01.8]} 3... g6 {[%clk 0:02:56.6]}
4. c3 {[%clk 0:03:01]} 4... Bg7 {[%clk 0:02:56.8]} 5. e3 {[%clk 0:03:01.3]} 5...
O-O {[%clk 0:02:57]} 6. Bd3 {[%clk 0:03:00.4]} 6... Nbd7 {[%clk 0:02:52.2]} 7.
Nbd2 {[%clk 0:03:00]} 7... c5 {[%clk 0:02:51.9]} 8. h3 {[%clk 0:02:59]} 8... Re8
{[%clk 0:02:47.6]} 9. O-O {[%clk 0:02:58.4]} 9... b6 {[%clk 0:02:41.3]} 10. e4
{[%clk 0:02:54.1]} 10... Bb7 {[%clk 0:02:40.2]} 11. e5 {[%clk 0:02:52.8]} 11...
Ne4 {[%clk 0:02:39.9]} 12. Re1 {[%clk 0:02:50.8]} 12... Nxd2 {[%clk 0:02:33.5]}
13. Qxd2 {[%clk 0:02:51.7]} 13... Nf8 {[%clk 0:02:33.8]} 14. Bh6 {[%clk
0:02:44.2]} 14... Ne6 {[%clk 0:02:33.1]} 15. a4 {[%clk 0:02:30.6]} 15... a5
{[%clk 0:02:29.7]} 16. Bb5 {[%clk 0:02:25.6]} 16... Rf8 {[%clk 0:02:27.8]} 17.
h4 {[%clk 0:02:23.9]} 17... Qc8 {[%clk 0:01:58.4]} 18. g3 {[%clk 0:02:20.8]}
18... Ba6 {[%clk 0:01:57.1]} 19. Bxa6 {[%clk 0:02:12.1]} 19... Qxa6 {[%clk
0:01:58]} 20. Kg2 {[%clk 0:02:10.4]} 20... cxd4 {[%clk 0:01:54.3]} 21. cxd4
{[%clk 0:02:05.6]} 21... Rfc8 {[%clk 0:01:54.8]} 22. h5 {[%clk 0:02:02.3]} 22...
Rc4 {[%clk 0:01:51.2]} 23. hxg6 {[%clk 0:01:57.7]} 23... fxg6 {[%clk 0:01:43.8]}
24. Bxg7 {[%clk 0:01:49.5]} 24... Nxg7 {[%clk 0:01:43.6]} 25. Rh1 {[%clk
0:01:33.7]} 25... Nf5 {[%clk 0:01:33.6]} 26. Qg5 {[%clk 0:01:30.2]} 26... Rf8
{[%clk 0:01:30]} 27. g4 {[%clk 0:01:07.5]} 27... Nxd4 {[%clk 0:01:00.4]} 28.
Qxe7 {[%clk 0:00:14.6]} 28... Rf7 {[%clk 0:00:58.9]} 29. Qe8+ {[%clk 0:00:14.1]}
29... Kg7 {[%clk 0:00:52.4]} 30. Rxh7+ {[%clk 0:00:13.3]} 1-0

[Event "*** SCC Grand Prix: Titled Tuesday Blitz"]
[Site "Chess.com"]
[Date "2020.10.06"]
[Round "8"]
[White "Teo2000"]
[Black "reutik"]
[Result "1-0"]
[WhiteElo "2413"]
[BlackElo "2199"]
[TimeControl "180+1"]
[EndTime "11:34:54 PDT"]
[Termination "Teo2000 won by resignation"]

1. e4 {[%clk 0:03:00.9]} 1... e5 {[%clk 0:03:00.3]} 2. Nf3 {[%clk 0:02:59.6]}
2... Nc6 {[%clk 0:03:00.6]} 3. Bc4 {[%clk 0:03:00.2]} 3... Nf6 {[%clk
0:03:00.1]} 4. Ng5 {[%clk 0:03:00.1]} 4... d5 {[%clk 0:02:58]} 5. exd5 {[%clk
0:03:01]} 5... Na5 {[%clk 0:02:58.2]} 6. Bb5+ {[%clk 0:03:00.6]} 6... c6 {[%clk
0:02:58.5]} 7. dxc6 {[%clk 0:03:01.5]} 7... bxc6 {[%clk 0:02:59]} 8. Qf3 {[%clk
0:03:02.2]} 8... Be7 {[%clk 0:02:57.6]} 9. O-O {[%clk 0:02:50.6]} 9... O-O
{[%clk 0:02:45.4]} 10. Bd3 {[%clk 0:02:49.5]} 10... h6 {[%clk 0:02:37.8]} 11.
Ne4 {[%clk 0:02:47.7]} 11... Nd5 {[%clk 0:02:35.9]} 12. Ng3 {[%clk 0:02:40.6]}
12... Nb7 {[%clk 0:02:08.3]} 13. Nc3 {[%clk 0:02:36.6]} 13... Nc5 {[%clk
0:02:02.6]} 14. Bf5 {[%clk 0:02:36.5]} 14... Ba6 {[%clk 0:01:45.7]} 15. d3
{[%clk 0:02:35.6]} 15... Bg5 {[%clk 0:01:07]} 16. Bxg5 {[%clk 0:02:18.6]} 16...
hxg5 {[%clk 0:01:07.3]} 17. Nxd5 {[%clk 0:01:58.3]} 17... cxd5 {[%clk
0:01:04.9]} 18. b4 {[%clk 0:01:47.6]} 18... g6 {[%clk 0:01:04.4]} 19. bxc5
{[%clk 0:01:43]} 19... gxf5 {[%clk 0:01:04.6]} 20. Qxf5 {[%clk 0:01:37.8]} 20...
Qe7 {[%clk 0:00:43]} 21. Rfe1 {[%clk 0:01:24.8]} 21... f6 {[%clk 0:00:43.2]} 22.
d4 {[%clk 0:01:23.4]} 22... Bc8 {[%clk 0:00:35]} 23. Qg6+ {[%clk 0:01:22.7]}
23... Qg7 {[%clk 0:00:35.1]} 24. Qxg7+ {[%clk 0:01:22.7]} 24... Kxg7 {[%clk
0:00:35.5]} 25. dxe5 {[%clk 0:01:23.6]} 25... f5 {[%clk 0:00:35.8]} 26. e6
{[%clk 0:01:19.3]} 26... Kg6 {[%clk 0:00:31.8]} 27. Rad1 {[%clk 0:01:16.2]}
27... f4 {[%clk 0:00:31.5]} 28. Nf1 {[%clk 0:00:55.7]} 28... Bb7 {[%clk
0:00:14.2]} 29. Nd2 {[%clk 0:00:54]} 29... Rac8 {[%clk 0:00:12.2]} 30. Nf3
{[%clk 0:00:44.7]} 30... Rxc5 {[%clk 0:00:09.9]} 31. Ne5+ {[%clk 0:00:45.1]}
31... Kf5 {[%clk 0:00:06.7]} 32. Nd7 {[%clk 0:00:46]} 32... Rxc2 {[%clk
0:00:05.3]} 33. Nxf8 {[%clk 0:00:44.7]} 1-0

[Event "*** SCC Grand Prix: Titled Tuesday Blitz"]
[Site "Chess.com"]
[Date "2020.10.06"]
[Round "8"]
[White "Alexsur1981"]
[Black "Shield12"]
[Result "1/2-1/2"]
[WhiteElo "2764"]
[BlackElo "2846"]
[TimeControl "180+1"]
[EndTime "11:34:55 PDT"]
[Termination "Game drawn by repetition"]

1. e4 {[%clk 0:03:00.9]} 1... c5 {[%clk 0:03:00.9]} 2. Nc3 {[%clk 0:02:58.5]}
2... Nc6 {[%clk 0:03:01.8]} 3. Bb5 {[%clk 0:02:58.3]} 3... Nd4 {[%clk
0:03:02.3]} 4. Nf3 {[%clk 0:02:58.5]} 4... a6 {[%clk 0:03:03.2]} 5. Bd3 {[%clk
0:02:58.2]} 5... Nc6 {[%clk 0:03:03.3]} 6. Be2 {[%clk 0:02:57.6]} 6... e6 {[%clk
0:03:04.1]} 7. d4 {[%clk 0:02:57.3]} 7... cxd4 {[%clk 0:03:05]} 8. Nxd4 {[%clk
0:02:57.9]} 8... Qc7 {[%clk 0:03:02.5]} 9. O-O {[%clk 0:02:57.5]} 9... Nf6
{[%clk 0:03:02.6]} 10. Kh1 {[%clk 0:02:50.4]} 10... h5 {[%clk 0:03:00.5]} 11. f4
{[%clk 0:02:45.6]} 11... Nxd4 {[%clk 0:03:00]} 12. Qxd4 {[%clk 0:02:45.2]} 12...
Bc5 {[%clk 0:03:00.9]} 13. Qd1 {[%clk 0:02:40.9]} 13... d6 {[%clk 0:02:50]} 14.
Bf3 {[%clk 0:02:38.7]} 14... e5 {[%clk 0:02:42.6]} 15. Nd5 {[%clk 0:02:34.6]}
15... Nxd5 {[%clk 0:02:42.1]} 16. Qxd5 {[%clk 0:02:35.5]} 16... Be6 {[%clk
0:02:40]} 17. Qd3 {[%clk 0:02:34.8]} 17... b5 {[%clk 0:02:33.7]} 18. b3 {[%clk
0:02:34.4]} 18... Rc8 {[%clk 0:02:31.1]} 19. f5 {[%clk 0:02:30.3]} 19... Bd7
{[%clk 0:02:30.9]} 20. Bb2 {[%clk 0:02:27.6]} 20... h4 {[%clk 0:02:26.6]} 21.
Rac1 {[%clk 0:02:21.7]} 21... Qb6 {[%clk 0:02:25.8]} 22. c3 {[%clk 0:02:17.2]}
22... a5 {[%clk 0:02:21.7]} 23. Rcd1 {[%clk 0:02:15]} 23... b4 {[%clk
0:02:19.1]} 24. c4 {[%clk 0:02:14.1]} 24... h3 {[%clk 0:02:14.4]} 25. g4 {[%clk
0:02:10.8]} 25... a4 {[%clk 0:02:13.5]} 26. Be2 {[%clk 0:02:03]} 26... Ra8
{[%clk 0:02:08.1]} 27. Bf3 {[%clk 0:01:49.1]} 27... Bc6 {[%clk 0:02:07.6]} 28.
Rd2 {[%clk 0:01:42.4]} 28... axb3 {[%clk 0:02:03.7]} 29. axb3 {[%clk 0:01:42.1]}
29... Ra2 {[%clk 0:02:00.6]} 30. Ra1 {[%clk 0:01:36]} 30... Rxa1+ {[%clk
0:01:55]} 31. Bxa1 {[%clk 0:01:36.9]} 31... O-O {[%clk 0:01:53.4]} 32. g5 {[%clk
0:01:30.4]} 32... Ra8 {[%clk 0:01:53]} 33. Bb2 {[%clk 0:01:30.4]} 33... Ra2
{[%clk 0:01:48.9]} 34. g6 {[%clk 0:01:23.5]} 34... f6 {[%clk 0:01:45.2]} 35. Qf1
{[%clk 0:01:18.5]} 35... Be3 {[%clk 0:01:33.8]} 36. Re2 {[%clk 0:01:14.7]} 36...
Bh6 {[%clk 0:00:58.1]} 37. Qxh3 {[%clk 0:01:12.4]} 37... Qa7 {[%clk 0:00:56.7]}
38. Qf1 {[%clk 0:01:08.6]} 38... Kf8 {[%clk 0:00:54]} 39. Qd1 {[%clk 0:01:03.4]}
39... Ke7 {[%clk 0:00:53.7]} 40. Kg2 {[%clk 0:01:02.8]} 40... Qa8 {[%clk
0:00:51]} 41. Qd3 {[%clk 0:00:57.8]} 41... Qa7 {[%clk 0:00:47.9]} 42. Qd1 {[%clk
0:00:52]} 42... Qa8 {[%clk 0:00:47.7]} 43. Qb1 {[%clk 0:00:51.2]} 43... Qa7
{[%clk 0:00:40.5]} 44. Qd1 {[%clk 0:00:40.1]} 1/2-1/2

[Event "*** SCC Grand Prix: Titled Tuesday Blitz"]
[Site "Chess.com"]
[Date "2020.10.06"]
[Round "8"]
[White "rududuyk"]
[Black "mirceaparligras"]
[Result "0-1"]
[WhiteElo "2171"]
[BlackElo "2637"]
[TimeControl "180+1"]
[EndTime "11:35:02 PDT"]
[Termination "mirceaparligras won on time"]

1. e4 {[%clk 0:03:00.9]} 1... c5 {[%clk 0:02:59.6]} 2. Nc3 {[%clk 0:02:59.2]}
2... d6 {[%clk 0:02:59.6]} 3. f4 {[%clk 0:02:59.2]} 3... Nc6 {[%clk 0:02:58]} 4.
Nf3 {[%clk 0:02:59.7]} 4... g6 {[%clk 0:02:57.6]} 5. Bc4 {[%clk 0:03:00.2]} 5...
Bg7 {[%clk 0:02:57.2]} 6. O-O {[%clk 0:03:00.3]} 6... e6 {[%clk 0:02:57.7]} 7.
d3 {[%clk 0:03:00.6]} 7... Nge7 {[%clk 0:02:58]} 8. Qe1 {[%clk 0:02:59.1]} 8...
O-O {[%clk 0:02:58.1]} 9. f5 {[%clk 0:02:59.2]} 9... gxf5 {[%clk 0:02:57.6]} 10.
Bg5 {[%clk 0:02:48]} 10... f6 {[%clk 0:02:43]} 11. Bd2 {[%clk 0:02:20.6]} 11...
fxe4 {[%clk 0:02:42.5]} 12. dxe4 {[%clk 0:02:20.1]} 12... Ng6 {[%clk 0:02:32.5]}
13. Rd1 {[%clk 0:02:11.2]} 13... Qe7 {[%clk 0:02:25.6]} 14. Qg3 {[%clk 0:02:03]}
14... Nge5 {[%clk 0:02:16.6]} 15. Bb3 {[%clk 0:01:37.3]} 15... c4 {[%clk
0:02:10.4]} 16. Ba4 {[%clk 0:01:37]} 16... Nxf3+ {[%clk 0:02:07.3]} 17. Rxf3
{[%clk 0:01:30.2]} 17... Ne5 {[%clk 0:02:05.4]} 18. Rf4 {[%clk 0:01:13.5]} 18...
a6 {[%clk 0:02:02.8]} 19. Rh4 {[%clk 0:01:03.9]} 19... b5 {[%clk 0:01:56.1]} 20.
Qh3 {[%clk 0:00:45.1]} 20... Qf7 {[%clk 0:01:16.7]} 21. Rxh7 {[%clk 0:00:21.2]}
21... Qg6 {[%clk 0:01:16.4]} 22. Rh4 {[%clk 0:00:16.9]} 22... bxa4 {[%clk
0:01:16.1]} 23. Bf4 {[%clk 0:00:15.3]} 23... f5 {[%clk 0:00:52.8]} 24. Rxd6
{[%clk 0:00:12.5]} 24... Rb8 {[%clk 0:00:38.3]} 25. Bh6 {[%clk 0:00:08.2]} 25...
Rxb2 {[%clk 0:00:32.5]} 26. Bxg7 {[%clk 0:00:07.9]} 26... Qxg7 {[%clk
0:00:31.3]} 27. Qe3 {[%clk 0:00:03.8]} 27... Rxc2 {[%clk 0:00:25.2]} 28. Rh3
{[%clk 0:00:02.9]} 28... Ng4 {[%clk 0:00:25.1]} 0-1

[Event "*** SCC Grand Prix: Titled Tuesday Blitz"]
[Site "Chess.com"]
[Date "2020.10.06"]
[Round "8"]
[White "Tsyhanchuk_Stanislav"]
[Black "Sacbutt"]
[Result "0-1"]
[WhiteElo "2365"]
[BlackElo "2288"]
[TimeControl "180+1"]
[EndTime "11:35:06 PDT"]
[Termination "Sacbutt won by checkmate"]

1. g4 {[%clk 0:02:56.6]} 1... e6 {[%clk 0:02:59.4]} 2. Bg2 {[%clk 0:02:56.5]}
2... d5 {[%clk 0:03:00.1]} 3. d4 {[%clk 0:02:55.4]} 3... c5 {[%clk 0:03:00.2]}
4. c3 {[%clk 0:02:51.7]} 4... Nc6 {[%clk 0:02:59.5]} 5. Bf4 {[%clk 0:02:43.4]}
5... Nf6 {[%clk 0:02:57.1]} 6. g5 {[%clk 0:02:43.2]} 6... Nd7 {[%clk 0:02:54.9]}
7. Nf3 {[%clk 0:02:40.5]} 7... Be7 {[%clk 0:02:54.2]} 8. h4 {[%clk 0:02:39.5]}
8... cxd4 {[%clk 0:02:48.7]} 9. cxd4 {[%clk 0:02:38.5]} 9... Qa5+ {[%clk
0:02:48.8]} 10. Nc3 {[%clk 0:02:38]} 10... Bb4 {[%clk 0:02:47.1]} 11. Bd2 {[%clk
0:02:34.6]} 11... Nb6 {[%clk 0:02:44.3]} 12. a3 {[%clk 0:02:34.1]} 12... Bxc3
{[%clk 0:02:43.2]} 13. Bxc3 {[%clk 0:02:35]} 13... Qa4 {[%clk 0:02:42.6]} 14.
Qd2 {[%clk 0:02:32.7]} 14... Nc4 {[%clk 0:02:40.8]} 15. Qf4 {[%clk 0:02:33]}
15... Qc2 {[%clk 0:02:36.3]} 16. O-O {[%clk 0:02:32]} 16... O-O {[%clk
0:02:29.7]} 17. h5 {[%clk 0:02:23.9]} 17... Bd7 {[%clk 0:02:19.9]} 18. h6 {[%clk
0:02:22.6]} 18... f6 {[%clk 0:02:08.4]} 19. hxg7 {[%clk 0:02:19.7]} 19... Kxg7
{[%clk 0:02:08.5]} 20. Qg3 {[%clk 0:02:11]} 20... fxg5 {[%clk 0:01:59.9]} 21.
Nxg5 {[%clk 0:02:07.2]} 21... Qg6 {[%clk 0:01:51.5]} 22. e4 {[%clk 0:02:06.4]}
22... Ne7 {[%clk 0:01:42]} 23. Bb4 {[%clk 0:01:51.9]} 23... Rae8 {[%clk
0:01:23.7]} 24. exd5 {[%clk 0:01:46.3]} 24... exd5 {[%clk 0:01:20.5]} 25. Rfe1
{[%clk 0:01:41.3]} 25... Rf5 {[%clk 0:01:14.7]} 26. Rxe7+ {[%clk 0:01:37.9]}
26... Rxe7 {[%clk 0:01:06.8]} 27. Bxe7 {[%clk 0:01:38.8]} 27... Nd2 {[%clk
0:00:51.8]} 28. Bd6 {[%clk 0:01:17]} 28... Rxg5 {[%clk 0:00:46]} 29. Be5+ {[%clk
0:01:16.5]} 29... Kf8 {[%clk 0:00:40.5]} 30. Qf4+ {[%clk 0:01:13.7]} 30... Bf5
{[%clk 0:00:39.8]} 31. Qxd2 {[%clk 0:01:00.5]} 31... Rxg2+ {[%clk 0:00:38.9]}
32. Kf1 {[%clk 0:01:00.6]} 32... Rg1+ {[%clk 0:00:38.9]} 33. Ke2 {[%clk
0:00:59.8]} 33... Rxa1 {[%clk 0:00:36.6]} 34. Qb4+ {[%clk 0:00:59.1]} 34... Kg8
{[%clk 0:00:32.3]} 35. Qe7 {[%clk 0:00:56.3]} 35... Bg4+ {[%clk 0:00:31.4]} 36.
Kd2 {[%clk 0:00:53.9]} 36... Qh6+ {[%clk 0:00:30.7]} 37. Kc2 {[%clk 0:00:18.2]}
37... Qc1+ {[%clk 0:00:28.1]} 38. Kb3 {[%clk 0:00:18.6]} 38... Qc4# {[%clk
0:00:28]} 0-1